lending/lending_fUSD_20240509
["ID","MTS","AMOUNT","RATE_DAILY","PERIOD"]
[326728635,1715285445662,-500.0,0.00041095,30]
[326728637,1715285445671,-503.34905797,0.00041095,30]
[326728639,1715285445680,-2071.34,0.00041095,30]
[326728641,1715285445689,-887.54,0.00041095,30]
[326728643,1715285445699,-523.86226275,0.00041095,30]
[326728644,1715285445709,-500.0,0.00041095,30]
[326728645,1715285445718,-3602.31,0.00041095,30]
[326728646,1715285445727,-512.83531871,0.00041095,30]
[326728647,1715285445736,-500.0,0.00041095,30]
[326728648,1715285445745,-500.0,0.00041095,30]
[326728649,1715285445755,-500.0,0.00041095,30]
[326728650,1715285445765,-753.84,0.00041095,30]
[326728651,1715285445775,-500.0,0.00041095,30]
[326728652,1715285445784,-2434.48,0.00041095,30]
[326728653,1715285445794,-500.0,0.00041095,30]
[326728654,1715285445804,-505.5447415,0.00041095,30]
[326728655,1715285445813,-500.0,0.00041095,30]
[326728656,1715285445822,-500.0,0.00041095,30]
[326728657,1715285445832,-1710.92,0.00041095,30]
[326728658,1715285445841,-500.0,0.00041095,30]
[326728659,1715285445851,-272.8235071,0.00041095,30]
[326728660,1715285445860,-1200.44,0.00041095,30]
[326728661,1715285445870,-500.0,0.00041095,30]
[326728662,1715285445879,-500.0,0.00041095,30]
[326728663,1715285445888,-500.0,0.00041095,30]
[326728664,1715285445897,-1000.0,0.00041095,30]
[326728665,1715285445906,-500.0,0.00041095,30]
[326728666,1715285445915,-500.0,0.00041095,30]
[326728667,1715285445925,-500.0,0.00041095,30]
[326728668,1715285445934,-500.0,0.00041095,30]
[326728669,1715285445944,-500.0,0.00041095,30]
[326728670,1715285445953,-500.0,0.00041095,30]
[326728671,1715285445962,-500.0,0.00041095,30]
[326728672,1715285445971,-500.0,0.00041095,31]
[326728673,1715285445981,-500.0,0.00041095,30]
[326728674,1715285445990,-1672.65,0.00041095,30]
[326728675,1715285445999,-500.0,0.00041095,32]
[326728676,1715285446008,-500.0,0.00041095,33]
[326728677,1715285446018,-500.0,0.00041095,34]
[326728678,1715285446028,-505.91386082,0.00041095,30]
[326728679,1715285446039,-1981.24,0.00041095,30]
[326728680,1715285446048,-784.97,0.00041095,30]
[326728681,1715285446058,-500.0,0.00041095,30]
[326728697,1715285446225,-621.91837437,0.00041095,30]
[326728699,1715285446235,-500.0,0.00041095,30]
[326728701,1715285446244,-500.0,0.00041095,30]
[326728703,1715285446255,-500.0,0.00041095,30]
[326728705,1715285446264,-500.0,0.00041095,30]
[326728707,1715285446273,-500.0,0.00041095,30]
[326728709,1715285446287,-3000.0,0.00041095,30]
[326728711,1715285446296,-500.0,0.00041095,30]
[326728713,1715285446305,-605.76,0.00041095,30]
[326728715,1715285446315,-500.0,0.00041095,30]
[326728718,1715285446325,-500.0,0.00041095,20]
[326728720,1715285446335,-582.02,0.00041095,2]
[326728721,1715285446344,-500.0,0.00041095,30]
[326728723,1715285446353,-1870.15,0.00041095,30]
[326728725,1715285446366,-500.0,0.00041095,30]
[326728727,1715285446376,-500.0,0.00041095,30]
[326728730,1715285446385,-1274.8,0.00041095,30]
[326728732,1715285446394,-858.29,0.00041095,30]
[326728734,1715285446403,-552.64,0.00041095,30]
[326728735,1715285446412,-1096.83,0.00041095,30]
[326728738,1715285446423,-500.0,0.00041095,30]
[326728740,1715285446432,-751.88,0.00041095,30]
[326728741,1715285446441,-500.7490207,0.00041095,30]
[326728744,1715285446451,-539.2095943,0.00041095,2]
[326728745,1715285446460,-508.15156808,0.00041095,30]
[326728747,1715285446469,-500.0,0.00041095,30]
[326728749,1715285446478,-500.0,0.00041095,30]
[326728751,1715285446487,-500.0,0.00041095,30]
[326728753,1715285446495,-500.0,0.00041095,30]
[326728755,1715285446505,-500.0,0.00041095,30]
[326728758,1715285446514,-500.0,0.00041095,30]
[326728760,1715285446523,-500.0,0.00041095,30]
[326728762,1715285446533,-500.0,0.00041095,30]
[326728764,1715285446542,-9931.73388826,0.00041095,2]
[326728766,1715285446551,-501.97114087,0.00041095,30]
[326728767,1715285446560,-500.0,0.00041095,30]
[326728770,1715285446569,-500.0,0.00041095,30]
[326728771,1715285446578,-674.0,0.00041095,30]
[326728774,1715285446588,-1681.06,0.00041095,30]
[326728776,1715285446598,-536.91,0.00041095,30]
[326728778,1715285446607,-722.0,0.00041095,30]
[326728779,1715285446617,-306.48417887,0.00041095,30]
[326728781,1715285446626,-1304.43,0.00041095,30]
[326728784,1715285446636,-500.0,0.00041095,30]
[326728786,1715285446646,-2327.17,0.00041095,30]
[326728788,1715285446655,-500.0,0.00041095,30]
[326728790,1715285446665,-500.0,0.00041095,30]
[326728792,1715285446674,-500.0,0.00041095,30]
[326728793,1715285446683,-206.21,0.00041095,30]
[326728796,1715285446693,-500.0,0.00041095,30]
[326728797,1715285446702,-834.61,0.00041095,30]
[326728799,1715285446711,-500.0,0.00041095,30]
[326728801,1715285446720,-500.0,0.00041095,30]
[326728803,1715285446729,-548.7,0.00041095,30]
[326728805,1715285446738,-1073.06,0.00041095,30]
[326728807,1715285446747,-626.53065997,0.00041095,30]
[326728809,1715285446757,-882.1,0.00041095,30]
[326728811,1715285446766,-500.0,0.00041095,30]
[326728813,1715285446777,-500.0,0.00041095,30]
[326728815,1715285446786,-514.71882721,0.00041095,30]
[326728817,1715285446795,-500.0,0.00041095,30]
[326728819,1715285446805,-1483.98,0.00041095,30]
[326728821,1715285446814,-500.0,0.00041095,30]
[326728823,1715285446823,-713.83,0.00041095,30]
[326728825,1715285446831,-867.5,0.00041095,30]
[326728827,1715285446840,-867.5,0.00041095,31]
[326728828,1715285446850,-500.0,0.00041095,30]
[326728829,1715285446859,-877.8,0.00041095,30]
[326728830,1715285446871,-867.5,0.00041095,32]
[326728831,1715285446880,-867.5,0.00041095,33]
[326728832,1715285446889,-500.0,0.00041095,30]
[326728833,1715285446898,-867.5,0.00041095,34]
[326728834,1715285446907,-867.5,0.00041095,35]
[326728835,1715285446917,-500.0,0.00041095,30]
[326728836,1715285446927,-867.5,0.00041095,36]
[326728837,1715285446937,-500.0,0.00041095,30]
[326728838,1715285446946,-867.5,0.00041095,37]
[326728839,1715285446956,-867.5,0.00041095,38]
[326728840,1715285446965,-500.0,0.00041095,30]
[326728841,1715285446975,-867.5,0.00041095,39]
[326728842,1715285446984,-867.5,0.00041095,40]
[326728843,1715285446993,-867.5,0.00041095,41]
[326728844,1715285447003,-500.0,0.00041095,30]
[326728845,1715285447013,-867.5,0.00041095,42]
[326728846,1715285447022,-867.5,0.00041095,43]
[326728847,1715285447031,-500.0,0.00041095,30]
[326728848,1715285447041,-867.5,0.00041095,44]
[326728849,1715285447050,-500.0,0.00041095,30]
[326728850,1715285447060,-917.3,0.00041095,30]
[326728851,1715285447070,-867.5,0.00041095,45]
[326728852,1715285447079,-867.5,0.00041095,46]
[326728853,1715285447088,-500.0,0.00041095,30]
[326728854,1715285447097,-867.5,0.00041095,47]
[326728855,1715285447107,-748.12,0.00041095,30]
[326728856,1715285447116,-867.5,0.00041095,48]
[326728857,1715285447125,-867.5,0.00041095,49]
[326728858,1715285447135,-867.5,0.00041095,49]
[326728859,1715285447144,-620.68,0.00041095,30]
[326728860,1715285447154,-500.0,0.00041095,30]
[326728861,1715285447163,-501.80934335,0.00041095,30]
[326728862,1715285447172,-867.5,0.00041095,49]
[326728863,1715285447181,-867.5,0.00041095,49]
[326728864,1715285447191,-867.57452394,0.00041095,49]
[326728865,1715285447200,-500.0,0.00041095,30]
[326728866,1715285447210,-514.05569392,0.00041095,30]
[326728867,1715285447219,-729.25,0.00041095,30]
[326728868,1715285447229,-203.33046894,0.00041095,30]
[326728869,1715285447238,-500.0,0.00041095,30]
[326728870,1715285447247,-806.19,0.00041095,30]
[326728871,1715285447256,-500.0,0.00041095,30]
[326728872,1715285447266,-516.66752226,0.00041095,30]
[326728873,1715285447275,-500.0,0.00041095,30]
[326728874,1715285447288,-500.0,0.00041095,30]
[326728875,1715285447298,-500.0,0.00041095,30]
[326728876,1715285447308,-2800.01,0.00041095,30]
[326728877,1715285447317,-835.97,0.00041095,30]
[326728878,1715285447328,-500.0,0.00041095,30]
[326728879,1715285447337,-500.0,0.00041095,30]
[326728880,1715285447347,-723.98,0.00041095,30]
[326728881,1715285447356,-500.0,0.00041095,30]
[326728882,1715285447367,-533.32768351,0.00041095,30]
[326728883,1715285447376,-500.0,0.00041095,30]
[326728884,1715285447386,-1206.01,0.00041095,30]
[326728885,1715285447396,-500.0,0.00041095,30]
[326728886,1715285447405,-500.0,0.00041095,30]
[326728887,1715285447414,-1116.1,0.00041095,30]
[326728888,1715285447423,-500.0,0.00041095,30]
[326728889,1715285447432,-500.0,0.00041095,30]
[326728890,1715285447442,-500.0,0.00041095,30]
[326728891,1715285447451,-500.0,0.00041095,30]
[326728892,1715285447460,-170.0281152,0.00041095,30]
[326728893,1715285447471,-568.97,0.00041095,30]
[326728894,1715285447480,-500.0,0.00041095,30]
[326728895,1715285447490,-751.73,0.00041095,30]
[326728896,1715285447500,-512.700227,0.00041095,30]
[326728897,1715285447510,-500.0,0.00041095,30]
[326728898,1715285447520,-2000.0,0.00041095,30]
[326728899,1715285447530,-500.0,0.00041095,30]
[326728900,1715285447540,-500.0,0.00041095,30]
[326728901,1715285447549,-500.69490622,0.00041095,30]
[326728902,1715285447559,-732.08,0.00041095,30]
[326728903,1715285447569,-516.02523463,0.00041095,30]
[326728904,1715285447578,-500.0,0.00041095,30]
[326728905,1715285447587,-1000.0,0.00041095,2]
[326728906,1715285447597,-500.0,0.00041095,30]
[326728907,1715285447606,-500.0,0.00041095,30]
[326728908,1715285447616,-500.0,0.00041095,30]
[326728909,1715285447625,-2380.47,0.00041095,30]
[326728910,1715285447634,-500.0,0.00041095,30]
[326728911,1715285447644,-500.0,0.00041095,30]
[326728912,1715285447653,-500.0,0.00041095,30]
[326728913,1715285447663,-539.09,0.00041095,30]
[326728914,1715285447672,-556.85947269,0.00041095,30]
[326728915,1715285447682,-500.0,0.00041095,30]
[326728916,1715285447691,-500.0,0.00041095,30]
[326728917,1715285447700,-967.05,0.00041095,30]
[326728918,1715285447709,-500.0,0.00041095,30]
[326728919,1715285447718,-1104.9,0.00041095,30]
[326728920,1715285447727,-500.0,0.00041095,30]
[326728921,1715285447736,-500.0,0.00041095,30]
[326728922,1715285447746,-500.0,0.00041095,30]
[326728923,1715285447755,-500.0,0.00041095,30]
[326728924,1715285447765,-500.0,0.00041095,30]
[326728925,1715285447776,-500.0,0.00041095,30]
[326728926,1715285447785,-500.0,0.00041095,30]
[326728927,1715285447795,-876.09,0.00041095,30]
[326728928,1715285447805,-500.0,0.00041095,30]
[326728929,1715285447816,-512.90400677,0.00041095,30]
[326728930,1715285447828,-753.66,0.00041095,30]
[326728931,1715285447838,-1435.33,0.00041095,30]
[326728932,1715285447848,-500.0,0.00041095,30]
[326728933,1715285447857,-500.0,0.00041095,30]
[326728934,1715285447868,-500.0,0.00041095,2]
[326728935,1715285447877,-599.40063505,0.00041095,30]
[326728936,1715285447887,-500.0,0.00041095,30]
[326728937,1715285447897,-500.0,0.00041095,30]
[326728938,1715285447907,-500.0,0.00041095,30]
[326728939,1715285447918,-1137.53,0.00041095,30]
[326728940,1715285447928,-500.0,0.00041095,30]
[326728941,1715285447937,-500.0,0.00041095,30]
[326728942,1715285447947,-571.81,0.00041095,30]
[326728943,1715285447956,-500.0,0.00041095,30]
[326728944,1715285447967,-500.0,0.00041095,30]
[326728945,1715285447977,-500.0,0.00041095,30]
[326728946,1715285447988,-500.0,0.00041095,30]
[326728947,1715285447997,-518.45533421,0.00041095,30]
[326728948,1715285448007,-500.0,0.00041095,30]
[326728949,1715285448016,-500.0,0.00041095,30]
[326728950,1715285448025,-500.0,0.00041095,30]
[326728951,1715285448035,-506.03869339,0.00041095,30]
[326728952,1715285448044,-500.0,0.00041095,30]
[326728953,1715285448054,-500.0,0.00041095,30]
[326728954,1715285448063,-151.05715238,0.00041095,30]
[326728955,1715285448072,-500.0,0.00041095,30]
[326728956,1715285448081,-500.0,0.00041095,30]
[326728957,1715285448091,-500.0,0.00041095,30]
[326728958,1715285448100,-500.0,0.00041095,30]
[326728959,1715285448110,-500.0,0.00041095,30]
[326728960,1715285448120,-500.0,0.00041095,30]
[326728961,1715285448129,-3068.87,0.00041095,30]
[326728962,1715285448139,-305.2335685,0.00041095,30]
[326728963,1715285448148,-500.0,0.00041095,30]
[326728964,1715285448157,-500.0,0.00041095,30]
[326728965,1715285448166,-500.0,0.00041095,30]
[326728966,1715285448176,-500.0,0.00041095,30]
[326728967,1715285448185,-1291.43,0.00041095,30]
[326728968,1715285448195,-500.0,0.00041095,30]
[326728969,1715285448204,-606.47,0.00041095,30]
[326728970,1715285448214,-500.0,0.00041095,30]
[326728971,1715285448223,-500.0,0.00041095,30]
[326728972,1715285448233,-500.0,0.00041095,30]
[326728973,1715285448243,-500.0,0.00041095,30]
[326728974,1715285448253,-500.0,0.00041095,30]
[326728975,1715285448262,-500.0,0.00041095,30]
[326728976,1715285448272,-515.13001335,0.00041095,30]
[326728977,1715285448285,-500.0,0.00041095,30]
[326728978,1715285448295,-500.0,0.00041095,30]
[326728979,1715285448304,-500.0,0.00041095,30]
[326728980,1715285448313,-1188.15,0.00041095,30]
[326728981,1715285448323,-500.0,0.00041095,30]
[326728982,1715285448332,-641.0,0.00041095,30]
[326728983,1715285448341,-473.47716081,0.00041095,30]
[326728984,1715285448350,-500.0,0.00041095,30]
[326728985,1715285448360,-500.0,0.00041095,30]
[326728986,1715285448370,-500.0,0.00041095,30]
[326728987,1715285448379,-276.82478652,0.00041095,30]
[326728988,1715285448388,-500.0,0.00041095,30]
[326728989,1715285448397,-500.0,0.00041095,30]
[326728990,1715285448406,-804.0,0.00041095,30]
[326728991,1715285448416,-500.0,0.00041095,30]
[326728992,1715285448426,-500.0,0.00041095,30]
[326728993,1715285448435,-500.0,0.00041095,30]
[326728994,1715285448444,-692.52,0.00041095,30]
[326728995,1715285448453,-500.0,0.00041095,30]
[326728996,1715285448463,-811.22,0.00041095,30]
[326728997,1715285448471,-506.92374052,0.00041095,30]
[326728998,1715285448480,-500.0,0.00041095,30]
[326728999,1715285448490,-500.0,0.00041095,30]
[326729000,1715285448499,-500.0,0.00041095,30]
[326729001,1715285448508,-500.0,0.00041095,30]
[326729002,1715285448666,-500.0,0.00041095,30]
[326729003,1715285448676,-500.0,0.00041095,30]
[326729004,1715285448685,-524.04479434,0.00041095,30]
[326729005,1715285448694,-500.0,0.00041095,30]
[326729006,1715285448704,-500.0,0.00041095,30]
[326729007,1715285448713,-500.0,0.00041095,30]
[326729008,1715285448723,-1309.01,0.00041095,30]
[326729009,1715285448732,-500.0,0.00041095,30]
[326729010,1715285448741,-502.36670978,0.00041095,30]
[326729011,1715285448751,-500.0,0.00041095,30]
[326729012,1715285448760,-500.0,0.00041095,30]
[326729013,1715285448770,-709.07,0.00041095,30]
[326729014,1715285448779,-1099.69,0.00041095,30]
[326729015,1715285448788,-500.0,0.00041095,30]
[326729016,1715285448797,-1770.25,0.00041095,30]
[326729017,1715285448806,-500.0,0.00041095,30]
[326729018,1715285448815,-500.0,0.00041095,30]
[326729019,1715285448824,-500.0,0.00041095,30]
[326729020,1715285448833,-500.0,0.00041095,30]
[326729021,1715285448842,-500.0,0.00041095,30]
[326729022,1715285448851,-500.0,0.00041095,30]
[326729023,1715285448861,-639.86,0.00041095,30]
[326729024,1715285448870,-500.0,0.00041095,30]
[326729025,1715285448879,-500.0,0.00041095,30]
[326729026,1715285448890,-500.0,0.00041095,30]
[326729027,1715285448900,-505.28,0.00041095,30]
[326729028,1715285448910,-501.40906771,0.00041095,30]
[326729029,1715285448921,-500.0,0.00041095,30]
[326729030,1715285448933,-500.0,0.00041095,30]
[326729031,1715285448944,-505.71051451,0.00041095,30]
[326729032,1715285448953,-500.0,0.00041095,30]
[326729033,1715285448963,-500.0,0.00041095,30]
[326729034,1715285448972,-942.85,0.00041095,30]
[326729035,1715285448982,-500.0,0.00041095,30]
[326729036,1715285448991,-500.0,0.00041095,30]
[326729037,1715285449001,-3172.61,0.00041095,30]
[326729038,1715285449010,-500.0,0.00041095,30]
[326729039,1715285449020,-500.0,0.00041095,30]
[326729040,1715285449030,-150.0,0.00041095,30]
[326729041,1715285449040,-500.0,0.00041095,30]
[326729042,1715285449050,-500.0,0.00041095,30]
[326729043,1715285449059,-500.0,0.00041095,30]
[326729044,1715285449069,-500.0,0.00041095,30]
[326729045,1715285449078,-506.67906937,0.00041095,30]
[326729046,1715285449088,-633.64,0.00041095,30]
[326729047,1715285449097,-500.0,0.00041095,30]
[326729048,1715285449107,-500.0,0.00041095,30]
[326729049,1715285449116,-500.0,0.00041095,30]
[326729050,1715285449125,-500.0,0.00041095,30]
[326729051,1715285449134,-500.0,0.00041095,30]
[326729052,1715285449143,-2063.44,0.00041095,30]
[326729053,1715285449152,-512.69,0.00041095,30]
[326729054,1715285449161,-513.29496815,0.00041095,30]
[326729055,1715285449171,-500.0,0.00041095,30]
[326729056,1715285449180,-500.0,0.00041095,30]
[326729057,1715285449190,-500.0,0.00041095,30]
[326729058,1715285449199,-512.45695198,0.00041095,30]
[326729059,1715285449208,-516.37487608,0.00041095,30]
[326729060,1715285449217,-500.0,0.00041095,30]
[326729061,1715285449227,-937.86,0.00041095,30]
[326729062,1715285449236,-500.0,0.00041095,30]
[326729063,1715285449245,-515.25167639,0.00041095,30]
[326729064,1715285449255,-500.0,0.00041095,30]
[326729065,1715285449264,-753.10265183,0.00041095,30]
[326729066,1715285449273,-502.98194686,0.00041095,30]
[326729067,1715285449284,-500.0,0.00041095,30]
[326729068,1715285449296,-500.0,0.00041095,30]
[326729069,1715285449306,-500.0,0.00041095,30]
[326729070,1715285449315,-509.66101193,0.00041095,30]
[326729071,1715285449324,-500.0,0.00041095,30]
[326729072,1715285449335,-500.0,0.00041095,30]
[326729073,1715285449345,-500.0,0.00041095,30]
[326729074,1715285449355,-1091.7,0.00041095,30]
[326729075,1715285449368,-926.15,0.00041095,30]
[326729076,1715285449379,-500.0,0.00041095,30]
[326729077,1715285449389,-500.0,0.00041095,30]
[326729078,1715285449400,-500.0,0.00041095,30]
[326729079,1715285449410,-500.0,0.00041095,30]
[326729080,1715285449422,-500.0,0.00041095,30]
[326729081,1715285449431,-500.0,0.00041095,30]
[326729082,1715285449441,-500.0,0.00041095,30]
[326729083,1715285449451,-500.0,0.00041095,30]
[326729084,1715285449463,-500.0,0.00041095,30]
[326729085,1715285449472,-500.0,0.00041095,30]
[326729086,1715285449482,-500.0,0.00041095,30]
[326729087,1715285449491,-1039.2,0.00041095,30]
[326729088,1715285449503,-500.0,0.00041095,30]
[326729089,1715285449511,-666.52,0.00041095,30]
[326729090,1715285449521,-500.0,0.00041095,30]
[326729091,1715285449531,-500.0,0.00041095,30]
[326729092,1715285449541,-500.0,0.00041095,30]
[326729093,1715285449551,-500.0,0.00041095,30]
[326729094,1715285449562,-878.7,0.00041095,30]
[326729095,1715285449570,-1139.52,0.00041095,30]
[326729096,1715285449580,-440.58980476,0.00041095,30]
[326729097,1715285449589,-500.0,0.00041095,30]
[326729098,1715285449598,-500.0,0.00041095,30]
[326729099,1715285449607,-500.0,0.00041095,30]
[326729100,1715285449618,-500.0,0.00041095,30]
[326729101,1715285449627,-500.0,0.00041095,30]
[326729102,1715285449636,-976.99,0.00041095,30]
[326729103,1715285449646,-500.0,0.00041095,30]
[326729104,1715285449655,-455.71271532,0.00041095,30]
[326729105,1715285449666,-572.44476912,0.00041095,30]
[326729106,1715285449675,-1662.81,0.00041095,30]
[326729107,1715285449684,-500.0,0.00041095,30]
[326729108,1715285449694,-500.0,0.00041095,30]
[326729109,1715285449705,-634.12813521,0.00041095,30]
[326729110,1715285449714,-500.0,0.00041095,30]
[326729111,1715285449724,-500.0,0.00041095,30]
[326729112,1715285449735,-1295.81,0.00041095,30]
[326729113,1715285449745,-500.0,0.00041095,30]
[326729114,1715285449755,-500.0,0.00041095,30]
[326729115,1715285449765,-500.0,0.00041095,30]
[326729116,1715285449776,-500.0,0.00041095,30]
[326729117,1715285449788,-500.0,0.00041095,30]
[326729118,1715285449799,-983.11,0.00041095,30]
[326729119,1715285449808,-1422.32,0.00041095,30]
[326729120,1715285449820,-500.0,0.00041095,30]
[326729121,1715285449830,-500.0,0.00041095,30]
[326729122,1715285449841,-500.0,0.00041095,30]
[326729123,1715285449851,-500.0,0.00041095,30]
[326729124,1715285449861,-552.43,0.00041095,30]
[326729125,1715285449871,-500.0,0.00041095,30]
[326729126,1715285449880,-500.0,0.00041095,30]
[326729127,1715285449889,-500.0,0.00041095,30]
[326729128,1715285449898,-500.0,0.00041095,30]
[326729129,1715285449907,-516.93693052,0.00041095,30]
[326729130,1715285449916,-500.0,0.00041095,30]
[326729131,1715285449926,-500.0,0.00041095,30]
[326729132,1715285449935,-500.0,0.00041095,30]
[326729133,1715285449944,-500.0,0.00041095,30]
[326729134,1715285449953,-715.27,0.00041095,30]
[326729135,1715285449962,-500.0,0.00041095,30]
[326729136,1715285449972,-500.0,0.00041095,30]
[326729137,1715285449981,-500.0,0.00041095,30]
[326729138,1715285449990,-500.0,0.00041095,30]
[326729139,1715285449999,-500.0,0.00041095,30]
[326729140,1715285450008,-565.42904932,0.00041095,30]
[326729141,1715285450018,-500.0,0.00041095,30]
[326729142,1715285450027,-500.0,0.00041095,30]
[326729143,1715285450037,-500.0,0.00041095,30]
[326729144,1715285450046,-536.11,0.00041095,30]
[326729145,1715285450056,-500.0,0.00041095,30]
[326729146,1715285450066,-500.0,0.00041095,30]
[326729147,1715285450076,-500.0,0.00041095,30]
[326729148,1715285450085,-1524.61,0.00041095,30]
[326729149,1715285450095,-500.0,0.00041095,30]
[326729150,1715285450104,-500.0,0.00041095,30]
[326729151,1715285450113,-500.0,0.00041095,30]
[326729152,1715285450123,-500.0,0.00041095,30]
[326729153,1715285450132,-1026.97,0.00041095,30]
[326729154,1715285450141,-500.0,0.00041095,30]
[326729155,1715285450150,-639.81,0.00041095,30]
[326729156,1715285450159,-500.0,0.00041095,30]
[326729157,1715285450168,-500.0,0.00041095,30]
[326729158,1715285450178,-500.0,0.00041095,30]
[326729159,1715285450187,-500.99997971,0.00041095,30]
[326729160,1715285450196,-500.0,0.00041095,30]
[326729161,1715285450205,-797.7,0.00041095,30]
[326729162,1715285450215,-500.0,0.00041095,30]
[326729163,1715285450224,-379.75221695,0.00041095,30]
[326729164,1715285450233,-1160.1,0.00041095,30]
[326729165,1715285450242,-1164.57,0.00041095,30]
[326729166,1715285450251,-500.0,0.00041095,30]
[326729167,1715285450265,-500.0,0.00041095,30]
[326729168,1715285450274,-500.0,0.00041095,30]
[326729169,1715285450287,-500.0,0.00041095,30]
[326729170,1715285450297,-500.0,0.00041095,30]
[326729171,1715285450306,-500.0,0.00041095,30]
[326729172,1715285450315,-500.0,0.00041095,30]
[326729173,1715285450326,-500.0,0.00041095,30]
[326729174,1715285450335,-500.0,0.00041095,30]
[326729175,1715285450344,-582.42,0.00041095,30]
[326729176,1715285450354,-500.0,0.00041095,30]
[326729177,1715285450363,-594.61,0.00041095,30]
[326729178,1715285450373,-538.81220772,0.00041095,4]
[326729179,1715285450383,-500.0,0.00041095,30]
[326729180,1715285450392,-500.0,0.00041095,30]
[326729181,1715285450402,-504.83636406,0.00041095,30]
[326729182,1715285450411,-500.0,0.00041095,30]
[326729183,1715285450422,-657.73,0.00041095,30]
[326729184,1715285450431,-500.0,0.00041095,30]
[326729185,1715285450440,-500.0,0.00041095,30]
[326729186,1715285450450,-500.0,0.00041095,30]
[326729187,1715285450459,-500.0,0.00041095,7]
[326729188,1715285450468,-500.0,0.00041095,30]
[326729189,1715285450477,-500.0,0.00041095,30]
[326729190,1715285450487,-500.0,0.00041095,30]
[326729191,1715285450496,-500.0,0.00041095,30]
[326729192,1715285450505,-500.0,0.00041095,30]
[326729193,1715285450514,-927.2,0.00041095,30]
[326729194,1715285450524,-659.34,0.00041095,30]
[326729195,1715285450533,-500.0,0.00041095,30]
[326729196,1715285450541,-522.34,0.00041095,30]
[326729197,1715285450551,-2000.0,0.00041095,120]
[326729198,1715285450560,-2378.48,0.00041095,30]
[326729199,1715285450569,-500.0,0.00041095,30]
[326729200,1715285450578,-509.1068554,0.00041095,30]
[326729201,1715285450587,-500.0,0.00041095,30]
[326729202,1715285450596,-500.0,0.00041095,30]
[326729203,1715285450605,-500.0,0.00041095,30]
[326729204,1715285450615,-500.0,0.00041095,30]
[326729205,1715285450625,-500.0,0.00041095,30]
[326729206,1715285450634,-500.0,0.00041095,30]
[326729207,1715285450643,-500.0,0.00041095,30]
[326729208,1715285450652,-500.0,0.00041095,30]
[326729209,1715285450661,-500.0,0.00041095,30]
[326729210,1715285450671,-3458.15,0.00041095,30]
[326729211,1715285450680,-606.01,0.00041095,30]
[326729212,1715285450689,-1670.18,0.00041095,30]
[326729213,1715285450699,-500.0,0.00041095,30]
[326729214,1715285450707,-501.38133002,0.00041095,30]
[326729215,1715285450716,-500.0,0.00041095,30]
[326729216,1715285450725,-500.0,0.00041095,30]
[326729217,1715285450735,-500.0,0.00041095,30]
[326729218,1715285450744,-500.0,0.00041095,30]